fUSD/lending_fUSD_20240702
["ID","MTS","AMOUNT","RATE_DAILY","PERIOD"]
[330896925,1719927059286,-500.0,0.00022465,4]
[330896926,1719927059296,-176.11477603,0.00022465,4]
[330896927,1719927059305,-502.448931,0.00022465,4]
[330896928,1719927059314,-505.55582159,0.00022465,4]
[330896929,1719927059323,-621.81228464,0.00022465,4]
[330896930,1719927059332,-500.0,0.00022465,4]
[330896931,1719927059341,-500.0,0.00022465,4]
[330896932,1719927059351,-500.0,0.00022465,4]
[330896933,1719927059360,-579.87,0.00022465,4]
[330896934,1719927059369,-500.0,0.00022465,4]
[330896935,1719927059378,-500.0,0.00022465,4]
[330896936,1719927059387,-163.18,0.00022465,4]
[330896937,1719927059398,-504.53340608,0.00022465,4]
[330896938,1719927059407,-500.0,0.00022465,4]
[330896939,1719927059417,-500.0,0.00022465,4]
[330896940,1719927059429,-500.0,0.00022465,4]
[330896941,1719927059438,-500.0,0.00022465,4]
[330896942,1719927059447,-500.0,0.00022465,4]
[330896943,1719927059456,-500.0,0.00022465,4]
[330896944,1719927059465,-582.09,0.00022465,4]
[330896945,1719927059474,-502.60857244,0.00022465,4]
[330896946,1719927059483,-500.0,0.00022465,4]
[330896947,1719927059492,-500.0,0.00022465,4]
[330896948,1719927059503,-500.0,0.00022465,4]
[330896949,1719927059518,-500.0,0.00022465,4]
[330896950,1719927059533,-500.0,0.00022465,4]
[330896951,1719927059545,-163.6,0.00022465,4]
[330896952,1719927059559,-500.0,0.00022465,4]
[330896953,1719927059574,-500.0,0.00022465,4]
[330896954,1719927059588,-497.98655158,0.00022465,4]
[330896955,1719927059607,-500.0,0.00022465,4]
[330896956,1719927059621,-500.0,0.00022465,4]
[330896957,1719927059637,-500.0,0.00022465,4]
[330896958,1719927059652,-500.0,0.00022465,4]
[330896959,1719927059666,-20432.73,0.00022465,4]
[330896960,1719927059679,-500.0,0.00022465,4]
[330896961,1719927059693,-7887.40446859,0.00022465,4]
[330896962,1719927060258,-328.27409759,0.00013999,2]
[330896963,1719927060271,-752.66429791,0.00022465,4]
[330896964,1719927060288,-11792.6612335,0.00022465,4]
[330896965,1719927060302,-500.0,0.00022465,4]
[330896966,1719927060314,-500.0,0.00022465,4]
[330896967,1719927060328,-500.0,0.00022465,4]
[330896968,1719927060340,-504.27610962,0.00022465,4]
[330896969,1719927060352,-500.0,0.00022465,4]
[330896970,1719927060365,-500.0,0.00022465,4]
[330896971,1719927060377,-500.0,0.00022465,4]
[330896972,1719927060389,-20432.73,0.00022465,4]
[330896973,1719927060404,-457.75,0.00022465,4]
[330896974,1719927060416,-649.48,0.00022465,4]
[330896975,1719927060428,-500.0,0.00022465,4]
[330896976,1719927060440,-500.0,0.00022465,4]
[330896977,1719927060451,-501.93875845,0.00022465,4]
[330896978,1719927060464,-500.0,0.00022465,4]
[330896979,1719927060477,-20432.73,0.00022465,4]
[330896980,1719927060490,-287.42,0.00022465,4]
[330896981,1719927060502,-503.45934413,0.00022465,4]
[330896982,1719927060515,-20432.73,0.00022465,4]
[330896983,1719927060528,-500.0,0.00022465,4]
[330896984,1719927060541,-500.0,0.00022465,4]
[330896985,1719927060550,-500.0,0.00022465,4]
[330896986,1719927060560,-20432.73,0.00022465,4]
[330896987,1719927060569,-500.0,0.00022465,4]
[330896988,1719927060578,-500.0,0.00022465,4]
[330896989,1719927060588,-20432.73,0.00022465,4]
[330896990,1719927060604,-540.56,0.00022465,4]
[330896991,1719927060615,-500.0,0.00022465,4]
[330896992,1719927060626,-574.61958057,0.00022465,4]
[330896993,1719927060638,-20432.73,0.00022465,4]
[330896994,1719927060650,-618.87,0.00022465,4]
[330896995,1719927060659,-172.64,0.00022465,4]
[330896996,1719927060669,-20432.73,0.00022465,4]
[330896997,1719927060679,-20432.73,0.00022465,4]
[330896998,1719927060689,-20432.73,0.00022465,4]
[330896999,1719927060699,-175.876771,0.00022465,7]
[330897000,1719927060708,-20432.73,0.00022465,4]
[330897001,1719927060719,-500.0,0.00022465,4]
[330897002,1719927060729,-500.0,0.00022465,4]
[330897003,1719927060739,-555.33582384,0.00022465,4]
[330897004,1719927060749,-500.0,0.00022465,4]
[330897005,1719927060764,-175.876771,0.00022465,7]
[330897006,1719927060784,-500.0,0.00022465,4]
[330897007,1719927060795,-507.18176684,0.00022465,4]
[330897008,1719927060805,-20432.73,0.00022465,4]
[330897009,1719927060816,-500.0,0.00022465,4]
[330897010,1719927060825,-175.876771,0.00022465,7]
[330897011,1719927060834,-389.45,0.00022465,4]
[330897012,1719927060843,-20432.73,0.00022465,4]
[330897013,1719927060853,-500.0,0.00022465,4]
[330897014,1719927060862,-175.876771,0.00022465,7]
[330897015,1719927060871,-500.0,0.00022465,4]
[330897016,1719927060880,-175.876771,0.00022465,7]
[330897017,1719927060890,-454.6,0.00022465,4]
[330897018,1719927060901,-503.31073254,0.00022465,4]
[330897019,1719927060911,-20432.73,0.00022465,4]
[330897020,1719927060921,-20432.73,0.00022465,4]
[330897021,1719927060932,-175.876771,0.00022465,7]
[330897022,1719927060941,-20432.73,0.00022465,4]
[330897023,1719927060951,-175.876771,0.00022465,7]
[330897024,1719927060960,-500.0,0.00022465,4]
[330897025,1719927060970,-6163.17364539,0.00022465,4]
[330897026,1719927061018,-366.11090361,0.00014099,2]
[330897027,1719927061028,-1897.15565742,0.00022465,4]
[330897028,1719927061039,-315.6,0.00022465,4]
[330897029,1719927061729,-304.73679106,0.000139,2]
[330897030,1719927061739,-813.0,0.0001778,2]
[330897031,1719927061749,-12056.80069719,0.00022465,4]
[330897032,1719927061763,-175.876771,0.00022465,7]
[330897033,1719927061774,-500.0,0.00022465,4]
[330897034,1719927061784,-500.0,0.00022465,4]
[330897035,1719927061794,-175.876771,0.00022465,7]
[330897036,1719927061803,-500.0,0.00022465,4]
[330897037,1719927061812,-500.0,0.00022465,4]
[330897038,1719927061822,-500.0,0.00022465,4]
[330897039,1719927061831,-500.0,0.00022465,4]
[330897040,1719927061840,-175.876768,0.00022465,7]
[330897041,1719927061850,-500.0,0.00022465,4]
[330897042,1719927061861,-20432.73,0.00022465,4]
[330897043,1719927061870,-500.0,0.00022465,4]
[330897044,1719927061880,-535.49,0.00022465,4]
[330897045,1719927061890,-500.0,0.00022465,4]
[330897046,1719927061902,-500.0,0.00022465,4]
[330897047,1719927061912,-500.0,0.00022465,4]
[330897048,1719927061921,-20432.73,0.00022465,4]
[330897049,1719927061936,-500.0,0.00022465,4]
[330897050,1719927061945,-284.46,0.00022465,4]
[330897051,1719927061955,-500.0,0.00022465,4]
[330897052,1719927061965,-369.1,0.00022465,4]
[330897053,1719927061975,-500.0,0.00022465,4]
[330897054,1719927061986,-500.0,0.00022465,4]
[330897055,1719927061996,-500.0,0.00022465,4]
[330897056,1719927062006,-552.33,0.00022465,4]
[330897057,1719927062015,-20432.73,0.00022465,4]
[330897058,1719927062025,-500.0,0.00022465,4]
[330897059,1719927062035,-20432.73,0.00022465,4]
[330897060,1719927062045,-223.59,0.00022465,4]
[330897061,1719927062055,-596.34054175,0.00022465,4]
[330897062,1719927062064,-500.0,0.00022465,4]
[330897063,1719927062075,-500.0,0.00022465,4]
[330897064,1719927062087,-327.98,0.00022465,4]
[330897065,1719927062097,-20432.73,0.00022465,4]
[330897066,1719927062106,-500.0,0.00022465,4]
[330897067,1719927062117,-175.72,0.00022465,4]
[330897068,1719927062129,-20432.74913927,0.00022465,4]
[330897069,1719927062139,-503.63578003,0.00022465,4]
[330897070,1719927062151,-500.0,0.00022465,4]
[330897071,1719927062161,-500.0,0.00022465,4]
[330897072,1719927062171,-551.10236307,0.00022465,4]
[330897073,1719927062180,-500.0,0.00022465,4]
[330897074,1719927062189,-500.0,0.00022465,4]
[330897075,1719927062199,-500.0,0.00022465,4]
[330897076,1719927062208,-500.0,0.00022465,4]
[330897077,1719927062217,-500.0,0.00022465,4]
[330897078,1719927062226,-500.0,0.00022465,4]
[330897079,1719927062237,-500.0,0.00022465,4]
[330897080,1719927062246,-439.04,0.00022465,4]
[330897081,1719927062256,-175.29,0.00022465,4]
[330897082,1719927062265,-576.26583902,0.00022465,4]
[330897083,1719927062275,-502.86560413,0.00022465,4]
[330897084,1719927062284,-500.0,0.00022465,4]
[330897085,1719927062293,-504.67718088,0.00022465,4]
[330897086,1719927062303,-500.0,0.00022465,4]
[330897087,1719927062312,-500.0,0.00022465,4]
[330897088,1719927062321,-500.0,0.00022465,4]
[330897089,1719927062330,-500.0,0.00022465,4]
[330897090,1719927062339,-432.57,0.00022465,4]
[330897091,1719927062349,-500.0,0.00022465,4]
[330897092,1719927062358,-500.0,0.00022465,4]
[330897093,1719927062367,-456.71,0.00022465,4]
[330897094,1719927062376,-500.0,0.00022465,4]
[330897095,1719927062385,-504.10715859,0.00022465,4]
[330897096,1719927062394,-316.23109683,0.00022465,4]
[330897097,1719927062408,-496.66596385,0.00022465,4]
[330897098,1719927062417,-537.86088333,0.00022465,4]
[330897099,1719927062426,-500.0,0.00022465,4]
[330897100,1719927062436,-500.0,0.00022465,4]
[330897101,1719927062445,-500.0,0.00022465,4]
[330897102,1719927062454,-150.5,0.00022465,4]
[330897103,1719927062466,-500.0,0.00022465,4]
[330897104,1719927062476,-500.0,0.00022465,4]
[330897105,1719927062486,-500.0,0.00022465,4]
[330897106,1719927062495,-500.0,0.00022465,4]
[330897107,1719927062505,-243.83925904,0.00022465,4]
[330897108,1719927062514,-500.0,0.00022465,4]
[330897109,1719927062523,-500.0,0.00022465,4]
[330897110,1719927062533,-500.0,0.00022465,4]
[330897111,1719927062542,-500.0,0.00022465,4]
[330897112,1719927062552,-233.87,0.00022465,4]
[330897113,1719927062562,-500.0,0.00022465,4]
[330897114,1719927062571,-472.41,0.00022465,4]
[330897115,1719927062581,-296.22530297,0.00022465,4]
[330897116,1719927062592,-500.0,0.00022465,4]
[330897117,1719927062603,-500.0,0.00022465,4]
[330897118,1719927062613,-286.7482976,0.00022465,4]
[330897119,1719927062623,-501.73853088,0.00022465,4]
[330897120,1719927062633,-502.9740902,0.00022465,4]
[330897121,1719927062642,-509.14964044,0.00022465,4]
[330897122,1719927062655,-615.00112239,0.00022465,4]
[330897123,1719927062664,-500.0,0.00022465,4]
[330897124,1719927062676,-500.0,0.00022465,4]
[330897125,1719927062686,-500.0,0.00022465,4]
[330897126,1719927062696,-500.0,0.00022465,4]
[330897127,1719927062705,-500.0,0.00022465,4]
[330897128,1719927062715,-602.3,0.00022465,4]
[330897129,1719927062724,-507.10386055,0.00022465,4]
[330897130,1719927062734,-500.0,0.00022465,4]
[330897131,1719927062743,-150.31,0.00022465,4]
[330897132,1719927062752,-500.0,0.00022465,4]
[330897133,1719927062763,-472.7,0.00022465,4]
[330897134,1719927062773,-500.0,0.00022465,4]
[330897135,1719927062783,-548.18662489,0.00022465,4]
[330897136,1719927062792,-501.98941272,0.00022465,4]
[330897137,1719927062802,-500.0,0.00022465,4]
[330897138,1719927062811,-500.0,0.00022465,4]
[330897139,1719927062821,-500.0,0.00022465,4]
[330897140,1719927062830,-500.0,0.00022465,4]
[330897141,1719927062840,-500.0,0.00022465,4]
[330897142,1719927062850,-500.0,0.00022465,4]
[330897143,1719927062859,-500.0,0.00022465,4]
[330897144,1719927062869,-393.73,0.00022465,4]
[330897145,1719927062878,-216.0689,0.00022465,4]
[330897146,1719927062888,-206.86,0.00022465,4]
[330897147,1719927062898,-500.0,0.00022465,4]
[330897148,1719927062911,-503.19678766,0.00022465,4]
[330897149,1719927062921,-500.0,0.00022465,4]
[330897150,1719927062931,-500.0,0.00022465,4]
[330897151,1719927062942,-274.045564,0.00022465,7]
[330897152,1719927062951,-500.0,0.00022465,4]
[330897153,1719927062962,-502.06063971,0.00022465,4]
[330897154,1719927062973,-274.045564,0.00022465,7]
[330897155,1719927062984,-500.0,0.00022465,4]
[330897156,1719927062993,-500.0,0.00022465,4]
[330897157,1719927063002,-274.045564,0.00022465,7]
[330897158,1719927063013,-500.0,0.00022465,4]
[330897159,1719927063022,-274.045564,0.00022465,7]
[330897160,1719927063031,-505.59008812,0.00022465,4]
[330897161,1719927063041,-500.0,0.00022465,4]
[330897162,1719927063051,-274.045564,0.00022465,7]
[330897163,1719927063061,-273.47,0.00022465,4]
[330897164,1719927063070,-274.045564,0.00022465,7]
[330897165,1719927063080,-502.40485927,0.00022465,4]
[330897166,1719927063089,-274.045564,0.00022465,7]
[330897167,1719927063099,-500.0,0.00022465,4]
[330897168,1719927063108,-502.44362959,0.00022465,4]
[330897169,1719927063119,-500.0,0.00022465,4]
[330897170,1719927063128,-500.0,0.00022465,4]
[330897171,1719927063138,-274.045564,0.00022465,7]
[330897172,1719927063147,-274.045564,0.00022465,7]
[330897173,1719927063158,-274.045563,0.00022465,7]
[330897174,1719927063167,-250.32016325,0.00022465,4]
[330897175,1719927063177,-500.0,0.00022465,4]
[330897176,1719927063186,-165.47,0.00022465,4]
[330897177,1719927063195,-500.0,0.00022465,4]
[330897178,1719927063205,-481.49,0.00022465,4]
[330897179,1719927063214,-501.5232267,0.00022465,4]
[330897180,1719927063224,-500.0,0.00022465,4]
[330897181,1719927063233,-500.0,0.00022465,4]
[330897182,1719927063243,-502.90126095,0.00022465,4]
[330897183,1719927063253,-500.0,0.00022465,4]
[330897184,1719927063263,-500.0,0.00022465,4]
[330897185,1719927063273,-501.48372567,0.00022465,4]
[330897186,1719927063282,-532.0,0.00022465,4]
[330897187,1719927063291,-501.35136773,0.00022465,4]
[330897188,1719927063300,-595.97669278,0.00022465,4]
[330897189,1719927063309,-502.38764102,0.00022465,4]
[330897190,1719927063318,-500.0,0.00022465,4]
[330897191,1719927063327,-500.0,0.00022465,4]
[330897192,1719927063336,-500.0,0.00022465,4]
[330897193,1719927063346,-500.0,0.00022465,4]
[330897194,1719927063355,-152.88033894,0.00022465,4]
[330897195,1719927063364,-500.0,0.00022465,4]
[330897196,1719927063373,-241.94,0.00022465,4]
[330897197,1719927063382,-500.0,0.00022465,4]
[330897198,1719927063391,-500.0,0.00022465,4]
[330897199,1719927063403,-500.0,0.00022465,4]
[330897200,1719927063413,-500.0,0.00022465,4]
[330897201,1719927063422,-500.0,0.00022465,4]
[330897202,1719927063432,-436.84,0.00022465,4]
[330897203,1719927063441,-500.0,0.00022465,4]
[330897204,1719927063450,-500.0,0.00022465,4]
[330897205,1719927063460,-500.0,0.00022465,4]
[330897206,1719927063469,-500.0,0.00022465,4]
[330897207,1719927063479,-500.0,0.00022465,4]
[330897208,1719927063488,-593.22,0.00022465,4]
[330897209,1719927063497,-500.0,0.00022465,4]
[330897210,1719927063506,-500.0,0.00022465,4]
[330897211,1719927063515,-500.0,0.00022465,4]
[330897212,1719927063525,-500.0,0.00022465,4]
[330897213,1719927063534,-500.0,0.00022465,4]
[330897214,1719927063543,-222.22,0.00022465,4]
[330897215,1719927063553,-500.0,0.00022465,4]
[330897216,1719927063562,-500.0,0.00022465,4]
[330897217,1719927063570,-500.0,0.00022465,4]
[330897218,1719927063579,-415.29,0.00022465,4]
[330897219,1719927063589,-500.0,0.00022465,4]
[330897220,1719927063601,-500.0,0.00022465,4]
[330897221,1719927063612,-506.63633261,0.00022465,4]
[330897222,1719927063621,-620.53,0.00022465,4]
[330897223,1719927063631,-500.0,0.00022465,4]
[330897224,1719927063640,-155.97167792,0.00022465,4]
[330897225,1719927063651,-500.0,0.00022465,4]
[330897226,1719927063661,-500.0,0.00022465,4]
[330897227,1719927063670,-502.73993338,0.00022465,4]
[330897228,1719927063681,-500.0,0.00022465,4]
[330897229,1719927063691,-500.0,0.00022465,4]
[330897230,1719927063700,-173.78,0.00022465,4]
[330897231,1719927063710,-500.0,0.00022465,4]
[330897232,1719927063720,-503.82733407,0.00022465,4]
[330897233,1719927063729,-151.0,0.00022465,7]
[330897234,1719927063738,-500.0,0.00022465,4]
[330897235,1719927063748,-500.0,0.00022465,4]
[330897236,1719927063758,-504.81082166,0.00022465,4]
[330897237,1719927063768,-500.0,0.00022465,4]
[330897238,1719927063777,-268.0,0.00022465,4]
[330897239,1719927063786,-500.0,0.00022465,4]
[330897240,1719927063795,-500.0,0.00022465,4]
[330897241,1719927063804,-500.0,0.00022465,4]
[330897242,1719927063814,-343.82611737,0.00022465,4]
[330897243,1719927063823,-507.88775997,0.00022465,4]
[330897244,1719927063832,-500.0,0.00022465,4]
[330897245,1719927063841,-503.15800895,0.00022465,4]
[330897246,1719927063851,-500.0,0.00022465,4]
[330897247,1719927063860,-500.0,0.00022465,4]
[330897248,1719927063870,-189.06,0.00022465,4]
[330897249,1719927063879,-349.01603765,0.00022465,4]
[330897250,1719927063889,-500.0,0.00022465,4]
[330897251,1719927063901,-500.0,0.00022465,4]
[330897252,1719927063910,-500.0,0.00022465,4]
[330897253,1719927063919,-500.0,0.00022465,4]
[330897254,1719927063928,-500.0,0.00022465,4]
[330897255,1719927063938,-500.0,0.00022465,4]
[330897256,1719927063948,-500.0,0.00022465,4]
[330897257,1719927063957,-500.0,0.00022465,4]
[330897258,1719927063967,-500.0,0.00022465,4]
[330897259,1719927063978,-236.949909,0.00022465,4]
[330897260,1719927063988,-500.0,0.00022465,4]
[330897261,1719927063998,-151.0,0.00022465,7]
[330897262,1719927064008,-500.0,0.00022465,4]
[330897263,1719927064018,-502.43089466,0.00022465,4]
[330897264,1719927064027,-346.28,0.00022465,4]
[330897265,1719927064036,-500.0,0.00022465,4]
[330897266,1719927064046,-613.67,0.00022465,4]
[330897267,1719927064056,-500.0,0.00022465,4]
[330897268,1719927064065,-501.41445488,0.00022465,4]
[330897269,1719927064075,-500.0,0.00022465,4]
[330897270,1719927064085,-496.1206983,0.00022465,4]
[330897271,1719927064094,-500.0,0.00022465,4]
[330897272,1719927064103,-500.0,0.00022465,4]
[330897273,1719927064113,-500.0,0.00022465,4]
[330897274,1719927064122,-500.0,0.00022465,4]
[330897275,1719927064131,-506.4274004,0.00022465,4]
[330897276,1719927064141,-500.0,0.00022465,4]
[330897277,1719927064152,-482.58,0.00022465,4]
[330897278,1719927064162,-500.0,0.00022465,4]
[330897279,1719927064172,-502.9736455,0.00022465,4]
[330897280,1719927064181,-500.0,0.00022465,4]
[330897281,1719927064191,-500.0,0.00022465,4]
[330897282,1719927064201,-500.0,0.00022465,4]
[330897283,1719927064210,-500.0,0.00022465,4]
[330897284,1719927064220,-500.0,0.00022465,4]
[330897285,1719927064229,-500.0,0.00022465,4]
[330897286,1719927064239,-500.0,0.00022465,4]
[330897287,1719927064248,-500.0,0.00022465,4]
[330897288,1719927064258,-500.0,0.00022465,4]
[330897289,1719927064267,-523.72,0.00022465,4]
[330897290,1719927064276,-503.62806982,0.00022465,4]
[330897291,1719927064286,-500.0,0.00022465,4]
[330897292,1719927064295,-500.0,0.00022465,4]
[330897293,1719927064304,-151.0,0.00022465,7]
[330897294,1719927064314,-382.63614634,0.00022465,4]
[330897295,1719927064323,-497.73046609,0.00022465,4]
[330897296,1719927064332,-493.51624553,0.00022465,4]
[330897297,1719927064342,-500.0,0.00022465,4]
[330897298,1719927064351,-360.33553909,0.00022465,4]
[330897299,1719927064361,-500.0,0.00022465,4]
[330897300,1719927064370,-500.0,0.00022465,4]
[330897301,1719927064380,-500.0,0.00022465,4]
[330897302,1719927064389,-500.0,0.00022465,4]
[330897303,1719927064400,-500.0,0.00022465,4]
[330897304,1719927064409,-500.0,0.00022465,4]
[330897305,1719927064419,-249.53,0.00022465,4]
[330897306,1719927064428,-500.0,0.00022465,4]
[330897307,1719927064437,-500.0,0.00022465,4]
[330897308,1719927064446,-500.0,0.00022465,4]
[330897309,1719927064456,-151.0,0.00022465,7]
[330897310,1719927064466,-486.6709296,0.00022465,4]
[330897311,1719927064476,-500.0,0.00022465,4]
[330897312,1719927064486,-233.06868461,0.00022465,4]
[330897313,1719927064495,-500.0,0.00022465,4]
[330897314,1719927064504,-169.0,0.00022465,4]
[330897315,1719927064514,-204.96153322,0.00022465,4]
[330897316,1719927064524,-500.0,0.00022465,4]
[330897317,1719927064534,-500.0,0.00022465,4]
[330897318,1719927064543,-500.0,0.00022465,4]
[330897319,1719927064556,-500.0,0.00022465,4]
[330897320,1719927064565,-500.0,0.00022465,4]
[330897321,1719927064575,-500.0,0.00022465,4]
[330897322,1719927064584,-500.0,0.00022465,4]
[330897323,1719927064597,-371.1,0.00022465,4]
[330897324,1719927064608,-314.22,0.00022465,4]
[330897325,1719927064618,-182.568779,0.00022465,7]
[330897326,1719927064628,-500.0,0.00022465,4]
[330897327,1719927064638,-500.0,0.00022465,4]
[330897328,1719927064648,-464.95,0.00022465,4]
[330897329,1719927064659,-500.0,0.00022465,4]
[330897330,1719927064668,-500.0,0.00022465,4]
[330897331,1719927064683,-500.0,0.00022465,4]
[330897332,1719927064693,-500.0,0.00022465,4]
[330897333,1719927064703,-536.69,0.00022465,4]
[330897334,1719927064713,-500.0,0.00022465,4]
[330897335,1719927064722,-208.21,0.00022465,4]
[330897336,1719927064732,-499.89,0.00022465,4]
[330897337,1719927064742,-182.568784,0.00022465,7]
[330897338,1719927064751,-500.0,0.00022465,4]
[330897339,1719927064761,-500.0,0.00022465,4]
[330897340,1719927064770,-500.0,0.00022465,4]
[330897341,1719927064780,-500.0,0.00022465,4]
[330897342,1719927064789,-500.0,0.00022465,4]
[330897343,1719927064798,-500.0,0.00022465,4]
[330897344,1719927064807,-500.0,0.00022465,4]
[330897345,1719927064816,-416.8,0.00022465,4]
[330897346,1719927064825,-500.0,0.00022465,4]
[330897347,1719927064835,-500.0,0.00022465,4]
[330897348,1719927064844,-500.0,0.00022465,4]
[330897349,1719927064854,-500.0,0.00022465,4]
[330897350,1719927064863,-468.73,0.00022465,4]
[330897351,1719927064872,-500.0,0.00022465,4]
[330897352,1719927064882,-500.0,0.00022465,4]
[330897353,1719927064892,-500.0,0.00022465,4]
[330897354,1719927064903,-500.0,0.00022465,4]
[330897355,1719927064912,-500.0,0.00022465,4]
[330897356,1719927064922,-463.47,0.00022465,4]
[330897357,1719927064933,-500.0,0.00022465,4]
[330897358,1719927064942,-500.0,0.00022465,4]
[330897359,1719927064952,-500.0,0.00022465,4]
[330897360,1719927064962,-258.95265768,0.00022465,4]
[330897361,1719927065131,-500.0,0.00022465,4]
[330897362,1719927065141,-500.0,0.00022465,4]
[330897363,1719927065152,-500.0,0.00022465,4]
[330897364,1719927065162,-500.0,0.00022465,4]
[330897365,1719927065171,-500.0,0.00022465,4]
[330897366,1719927065180,-500.0,0.00022465,4]
[330897367,1719927065190,-500.0,0.00022465,4]
[330897368,1719927065199,-500.0,0.00022465,4]
[330897369,1719927065208,-499.18,0.00022465,4]
[330897370,1719927065218,-500.0,0.00022465,4]
[330897371,1719927065227,-500.0,0.00022465,4]
[330897372,1719927065236,-500.0,0.00022465,4]
[330897373,1719927065246,-500.0,0.00022465,4]
[330897374,1719927065255,-611.85,0.00022465,4]
[330897375,1719927065265,-500.0,0.00022465,4]
[330897376,1719927065274,-500.0,0.00022465,4]
[330897377,1719927065283,-500.0,0.00022465,4]
[330897378,1719927065293,-629.32,0.00022465,4]
[330897379,1719927065302,-500.0,0.00022465,4]
[330897380,1719927065311,-500.0,0.00022465,4]
[330897381,1719927065320,-500.0,0.00022465,4]
[330897382,1719927065329,-500.0,0.00022465,4]
[330897383,1719927065339,-500.0,0.00022465,4]
[330897384,1719927065348,-339.22,0.00022465,4]
[330897385,1719927065358,-500.0,0.00022465,4]
[330897386,1719927065367,-500.0,0.00022465,4]
[330897387,1719927065376,-500.0,0.00022465,4]
[330897388,1719927065386,-500.0,0.00022465,4]
[330897389,1719927065396,-500.0,0.00022465,4]
[330897390,1719927065408,-500.0,0.00022465,4]
[330897391,1719927065417,-500.0,0.00022465,4]
[330897392,1719927065427,-500.0,0.00022465,4]
[330897393,1719927065436,-208.93214057,0.00022465,4]
[330897394,1719927065445,-500.0,0.00022465,4]
[330897395,1719927065455,-500.0,0.00022465,4]
[330897396,1719927065464,-500.0,0.00022465,4]
[330897397,1719927065474,-500.0,0.00022465,4]
[330897398,1719927065484,-503.83757666,0.00022465,4]
[330897399,1719927065494,-500.0,0.00022465,4]
[330897400,1719927065503,-500.0,0.00022465,4]
[330897401,1719927065519,-505.58712173,0.00022465,4]
[330897402,1719927065529,-500.0,0.00022465,4]
[330897403,1719927065539,-500.0,0.00022465,4]
[330897404,1719927065549,-500.0,0.00022465,4]
[330897405,1719927065558,-500.0,0.00022465,4]
[330897406,1719927065567,-500.0,0.00022465,4]
[330897407,1719927065577,-311.99,0.00022465,4]
[330897408,1719927065587,-553.93,0.00022465,4]
[330897409,1719927065599,-500.0,0.00022465,4]
[330897410,1719927065609,-500.0,0.00022465,4]
[330897411,1719927065620,-216.22294586,0.00022465,4]
[330897412,1719927065629,-500.0,0.00022465,4]
[330897413,1719927065639,-500.0,0.00022465,4]
[330897414,1719927065648,-500.0,0.00022465,4]
[330897415,1719927065658,-500.0,0.00022465,4]
[330897416,1719927065668,-500.0,0.00022465,4]
[330897417,1719927065679,-500.0,0.00022465,4]
[330897418,1719927065688,-186.83979427,0.00022465,4]
[330897419,1719927065697,-500.0,0.00022465,4]
[330897420,1719927065707,-594.08,0.00022465,4]
[330897421,1719927065715,-500.0,0.00022465,4]
[330897422,1719927065725,-500.0,0.00022465,4]
[330897423,1719927065734,-502.06863116,0.00022465,4]
[330897424,1719927065743,-500.0,0.00022465,4]